[Event "The Schackveckan 2023: IM-turnering"]
[Site "Goteborgs schackcentrum, Vegagatan 20, Gothenburg, Sweden"]
[Date "2023.08.07"]
[Round "4.3"]
[White "Sorensen, Hampus"]
[Black "Tryggestad, Andreas Garberg"]
[Result "0-1"]
[TimeControl "90 minutes for 40 moves + 30 minutes for the rest of the game + 30 seconds per move from move one."]
[WhiteTitle "IM"]
[BlackTitle "FM"]
[WhiteFideId "8703884"]
[BlackFideId "1513338"]
[WhiteElo "2475"]
[BlackElo "2233"]

1. e4 {[%clk 01:30:29]} {[%emt 00:00:31]} e5 {[%clk 01:30:55]} {[%emt
00:00:05]} 2. Nf3 {[%clk 01:30:36]} {[%emt 00:00:22]} Nc6 {[%clk 01:31:07]}
{[%emt 00:00:19]} 3. Bb5 {[%clk 01:30:46]} {[%emt 00:00:20]} a6 {[%clk
01:31:31]} {[%emt 00:00:06]} 4. Ba4 {[%clk 01:30:52]} {[%emt 00:00:24]} Nf6
{[%clk 01:31:49]} {[%emt 00:00:12]} 5. O-O {[%clk 01:31:13]} {[%emt 00:00:08]}
Be7 {[%clk 01:32:07]} {[%emt 00:00:13]} 6. d3 {[%clk 01:31:22]} {[%emt
00:00:21]} b5 {[%clk 01:31:21]} {[%emt 00:01:16]} 7. Bb3 {[%clk 01:31:44]}
{[%emt 00:00:08]} d6 {[%clk 01:31:44]} {[%emt 00:00:07]} 8. c3 {[%clk
01:31:33]} {[%emt 00:00:40]} Bg4 {[%clk 01:27:03]} {[%emt 00:05:12]} 9. Re1
{[%clk 01:24:47]} {[%emt 00:07:16]} O-O {[%clk 01:16:55]} {[%emt 00:10:38]} 10.
h3 {[%clk 01:24:37]} {[%emt 00:00:40]} Bh5 {[%clk 01:17:23]} {[%emt 00:00:02]}
11. Nbd2 {[%clk 01:22:16]} {[%emt 00:02:50]} Na5 {[%clk 01:11:17]} {[%emt
00:06:37]} 12. Bc2 {[%clk 01:21:54]} {[%emt 00:00:52]} c5 {[%clk 01:11:44]}
{[%emt 00:00:02]} 13. Nf1 {[%clk 01:20:42]} {[%emt 00:01:42]} Nd7 {[%clk
01:02:08]} {[%emt 00:10:06]} 14. Ng3 {[%clk 01:11:43]} {[%emt 00:09:29]} Bg6
{[%clk 01:02:36]} {[%emt 00:00:02]} 15. d4 {[%clk 01:08:19]} {[%emt 00:03:55]}
Qc7 {[%clk 00:59:10]} {[%emt 00:03:56]} 16. d5 {[%clk 01:05:31]} {[%emt
00:03:16]} Nc4 {[%clk 00:53:51]} {[%emt 00:05:50]} 17. Nh2 {[%clk 00:48:17]}
{[%emt 00:17:44]} b4 {[%clk 00:50:46]} {[%emt 00:03:36]} 18. Bd3 {[%clk
00:45:27]} {[%emt 00:03:19]} Ncb6 {[%clk 00:51:08]} {[%emt 00:00:09]} 19. c4
{[%clk 00:45:43]} {[%emt 00:00:14]} a5 {[%clk 00:50:51]} {[%emt 00:00:48]} 20.
Qg4 {[%clk 00:40:50]} {[%emt 00:05:22]} Qd8 {[%clk 00:38:57]} {[%emt 00:12:24]}
21. Nhf1 {[%clk 00:35:41]} {[%emt 00:05:38]} a4 {[%clk 00:32:05]} {[%emt
00:07:23]} 22. Ne3 {[%clk 00:30:55]} {[%emt 00:05:14]} Bg5 {[%clk 00:32:29]}
{[%emt 00:00:07]} 23. Ngf5 {[%clk 00:30:06]} {[%emt 00:01:20]} Qf6 {[%clk
00:31:57]} {[%emt 00:01:02]} 24. Ng3 {[%clk 00:25:07]} {[%emt 00:05:28]} h6
{[%clk 00:29:18]} {[%emt 00:03:09]} 25. Qe2 {[%clk 00:24:37]} {[%emt 00:01:00]}
Nc8 {[%clk 00:27:46]} {[%emt 00:02:03]} 26. Ngf1 {[%clk 00:24:12]} {[%emt
00:00:54]} Qd8 {[%clk 00:27:19]} {[%emt 00:00:58]} 27. g3 {[%clk 00:24:06]}
{[%emt 00:00:36]} Nf6 {[%clk 00:25:39]} {[%emt 00:02:09]} 28. h4 {[%clk
00:22:18]} {[%emt 00:02:19]} Bxe3 {[%clk 00:24:58]} {[%emt 00:01:11]} 29. Qxe3
{[%clk 00:22:31]} {[%emt 00:00:16]} Qd7 {[%clk 00:24:21]} {[%emt 00:01:07]} 30.
f3 {[%clk 00:19:43]} {[%emt 00:03:18]} Re8 {[%clk 00:18:56]} {[%emt 00:05:55]}
31. Qf2 {[%clk 00:18:46]} {[%emt 00:01:26]} Ne7 {[%clk 00:14:37]} {[%emt
00:04:51]} 32. Ne3 {[%clk 00:11:40]} {[%emt 00:07:35]} Bh7 {[%clk 00:14:39]}
{[%emt 00:00:28]} 33. g4 {[%clk 00:11:34]} {[%emt 00:00:37]} Kf8 {[%clk
00:14:06]} {[%emt 00:01:03]} 34. Bf1 {[%clk 00:09:30]} {[%emt 00:02:34]} Ng6
{[%clk 00:13:17]} {[%emt 00:01:19]} 35. Nf5 {[%clk 00:08:24]} {[%emt 00:01:35]}
Nf4 {[%clk 00:11:30]} {[%emt 00:02:17]} 36. Bxf4 {[%clk 00:07:00]} {[%emt
00:01:54]} exf4 {[%clk 00:11:48]} {[%emt 00:00:13]} 37. Qh2 {[%clk 00:06:39]}
{[%emt 00:00:51]} Bxf5 {[%clk 00:09:17]} {[%emt 00:03:01]} 38. exf5 {[%clk
00:07:01]} {[%emt 00:00:08]} a3 {[%clk 00:09:19]} {[%emt 00:00:28]} 39. b3
{[%clk 00:04:46]} {[%emt 00:02:45]} Rxe1 {[%clk 00:05:41]} 40. Rxe1 {[%clk
00:05:14]} {[%emt 00:04:09]} Re8 {[%clk 00:06:05]} {[%emt 00:00:07]} 41. Rd1
{[%clk 00:02:07]} {[%emt 00:03:37]} Qe7 {[%clk 00:29:22]} {[%emt 00:07:12]} 42.
Qxf4 {[%clk 00:31:25]} {[%emt 00:01:13]} Qe5 {[%clk 00:29:04]} {[%emt
00:00:48]} 43. Qxe5 {[%clk 00:31:25]} {[%emt 00:00:30]} Rxe5 {[%clk 00:26:49]}
44. Kf2 {[%clk 00:30:20]} {[%emt 00:04:20]} Re7 {[%clk 00:18:59]} {[%emt
00:08:20]} 45. Bd3 {[%clk 00:27:24]} {[%emt 00:03:26]} Nd7 {[%clk 00:12:57]}
{[%emt 00:06:32]} 46. Rg1 {[%clk 00:23:38]} {[%emt 00:04:15]} Nf6 {[%clk
00:11:16]} {[%emt 00:02:12]} 47. g5 {[%clk 00:20:46]} {[%emt 00:03:21]} Ng8
{[%clk 00:04:55]} {[%emt 00:06:51]} 48. f4 {[%clk 00:18:04]} {[%emt 00:03:12]}
Re8 {[%clk 00:05:24]} {[%emt 00:00:01]} 49. Kf3 {[%clk 00:11:34]} {[%emt
00:07:00]} Re7 {[%clk 00:05:54]} 50. Bb1 {[%clk 00:11:40]} {[%emt 00:00:23]}
Re8 {[%clk 00:06:23]} 51. Bd3 {[%clk 00:07:39]} {[%emt 00:04:31]} Re7 {[%clk
00:06:52]} {[%emt 00:00:01]} 52. Rg2 {[%clk 00:08:04]} {[%emt 00:00:05]} Re1
{[%clk 00:06:30]} {[%emt 00:00:52]} 53. Kg4 {[%clk 00:06:45]} {[%emt 00:01:50]}
Rd1 {[%clk 00:06:36]} {[%emt 00:00:24]} 54. Bc2 {[%clk 00:07:10]} {[%emt
00:00:04]} Ra1 {[%clk 00:07:01]} {[%emt 00:00:05]} 55. Be4 {[%clk 00:07:25]}
{[%emt 00:00:14]} Re1 {[%clk 00:07:02]} {[%emt 00:00:30]} 56. Bf3 {[%clk
00:07:30]} {[%emt 00:00:26]} Rf1 {[%clk 00:05:12]} {[%emt 00:02:20]} 57. Kg3
{[%clk 00:06:41]} {[%emt 00:01:19]} Re1 {[%clk 00:05:34]} {[%emt 00:00:07]} 58.
Rd2 {[%clk 00:05:25]} {[%emt 00:01:46]} Rg1+ {[%clk 00:05:12]} {[%emt
00:00:52]} 59. Kf2 {[%clk 00:05:48]} {[%emt 00:00:07]} Rb1 {[%clk 00:05:35]}
{[%emt 00:00:07]} 60. Re2 {[%clk 00:05:13]} {[%emt 00:01:05]} Ra1 {[%clk
00:05:43]} {[%emt 00:00:22]} 61. Bg2 {[%clk 00:04:30]} {[%emt 00:01:13]} Rb1
{[%clk 00:06:04]} {[%emt 00:00:10]} 62. Kg3 {[%clk 00:04:53]} {[%emt 00:00:07]}
Ne7 {[%clk 00:03:08]} {[%emt 00:03:26]} 63. Kg4 {[%clk 00:04:57]} {[%emt
00:00:26]} h5+ {[%clk 00:03:00]} {[%emt 00:00:38]} 64. Kxh5 {[%clk 00:04:56]}
{[%emt 00:00:30]} Nxf5 {[%clk 00:03:29]} {[%emt 00:00:02]} 65. Kg4 {[%clk
00:02:25]} {[%emt 00:03:00]} Nd4 {[%clk 00:03:03]} {[%emt 00:00:56]} 66. Rf2
{[%clk 00:01:13]} {[%emt 00:01:43]} Rb2 {[%clk 00:03:29]} {[%emt 00:00:04]} 67.
Rxb2 {[%clk 00:01:04]} {[%emt 00:00:40]} axb2 {[%clk 00:03:57]} {[%emt
00:00:01]} 68. Be4 {[%clk 00:01:32]} {[%emt 00:00:02]} Ne2 {[%clk 00:04:17]}
{[%emt 00:00:10]} 69. Bc2 {[%clk 00:01:21]} {[%emt 00:00:40]} Nc3 {[%clk
00:04:43]} {[%emt 00:00:04]} 70. Kf3 {[%clk 00:00:45]} {[%emt 00:01:07]} Nxa2
{[%clk 00:04:59]} {[%emt 00:00:13]} 71. Ke3 {[%clk 00:00:49]} {[%emt 00:00:25]}
Nc3 {[%clk 00:00:56]} {[%emt 00:04:34]} 72. h5 {[%clk 00:01:02]} {[%emt
00:00:17]} Kg8 {[%clk 00:00:57]} {[%emt 00:00:30]} 73. Kd2 {[%clk 00:01:20]}
{[%emt 00:00:11]} b1=Q {[%clk 00:01:09]} {[%emt 00:00:19]} 74. Bxb1 {[%clk
00:01:49]} Nxb1+ {[%clk 00:01:33]} {[%emt 00:00:06]} 75. Kd3 {[%clk 00:01:30]}
{[%emt 00:00:48]} f5 {[%clk 00:00:51]} {[%emt 00:01:13]} 76. gxf6 {[%clk
00:00:38]} {[%emt 00:01:22]} gxf6 {[%clk 00:00:33]} {[%emt 00:00:48]} 77. Ke4
{[%clk 00:01:07]} {[%emt 00:00:01]} Nc3+ {[%clk 00:00:33]} {[%emt 00:00:29]} 78.
Kf5 {[%clk 00:01:25]} {[%emt 00:00:13]} Kf7 {[%clk 00:00:57]} {[%emt 00:00:06]}
79. h6 {[%clk 00:01:48]} {[%emt 00:00:06]} Ne2 {[%clk 00:01:20]} {[%emt
00:00:07]} 80. Kg4 {[%clk 00:01:42]} {[%emt 00:00:36]} Nd4 {[%clk 00:00:46]}
{[%emt 00:01:04]} 81. Kh5 {[%clk 00:02:01]} {[%emt 00:00:11]} Nxb3 {[%clk
00:00:38]} {[%emt 00:00:38]} 82. h7 {[%clk 00:02:26]} {[%emt 00:00:05]} Kg7
{[%clk 00:01:08]} 0-1

[Event "The Schackveckan 2023: IM-turnering"]
[Site "Goteborgs schackcentrum, Vegagatan 20, Gothenburg, Sweden"]
[Date "2023.08.07"]
[Round "4.4"]
[White "Hector, Jonny"]
[Black "Olsson, William"]
[Result "1-0"]
[TimeControl "90 minutes for 40 moves + 30 minutes for the rest of the game + 30 seconds per move from move one."]
[WhiteTitle "GM"]
[BlackTitle "FM"]
[WhiteFideId "1700090"]
[BlackFideId "1741721"]
[WhiteElo "2466"]
[BlackElo "2400"]

1. e4 {[%clk 01:30:49]} {[%emt 00:00:09]} c5 {[%clk 01:30:38]} {[%emt
00:00:25]} 2. c3 {[%clk 01:31:11]} {[%emt 00:00:07]} Nf6 {[%clk 01:31:00]}
{[%emt 00:00:08]} 3. e5 {[%clk 01:31:28]} {[%emt 00:00:12]} Nd5 {[%clk
01:31:22]} {[%emt 00:00:08]} 4. d4 {[%clk 01:31:48]} {[%emt 00:00:11]} cxd4
{[%clk 01:31:44]} {[%emt 00:00:08]} 5. Qxd4 {[%clk 01:32:09]} {[%emt 00:00:09]}
e6 {[%clk 01:31:22]} {[%emt 00:00:52]} 6. Nf3 {[%clk 01:32:21]} {[%emt
00:00:17]} Nc6 {[%clk 01:31:32]} {[%emt 00:00:21]} 7. Qe4 {[%clk 01:32:20]}
{[%emt 00:00:30]} d6 {[%clk 01:30:34]} {[%emt 00:01:29]} 8. Bb5 {[%clk
01:31:51]} {[%emt 00:00:58]} Bd7 {[%clk 01:27:16]} {[%emt 00:03:49]} 9. c4
{[%clk 01:30:27]} {[%emt 00:01:54]} Nb6 {[%clk 01:19:04]} {[%emt 00:08:43]} 10.
exd6 {[%clk 01:29:58]} {[%emt 00:00:57]} Bxd6 {[%clk 01:19:23]} {[%emt
00:00:13]} 11. O-O {[%clk 01:29:45]} {[%emt 00:00:41]} a6 {[%clk 01:15:09]}
{[%emt 00:04:46]} 12. Rd1 {[%clk 01:27:33]} {[%emt 00:02:40]} axb5 {[%clk
01:10:01]} {[%emt 00:05:40]} 13. Rxd6 {[%clk 01:25:19]} {[%emt 00:02:42]} Nxc4
{[%clk 01:09:04]} {[%emt 00:01:28]} 14. Rd1 {[%clk 01:24:47]} {[%emt 00:01:01]}
Qe7 {[%clk 01:06:02]} {[%emt 00:03:33]} 15. Nc3 {[%clk 01:22:10]} {[%emt
00:03:06]} N6a5 {[%clk 01:03:09]} {[%emt 00:03:25]} 16. b3 {[%clk 00:55:55]}
{[%emt 00:26:43]} Nd6 {[%clk 00:38:48]} {[%emt 00:24:52]} 17. Qc2 {[%clk
00:40:00]} {[%emt 00:16:24]} b4 {[%clk 00:36:44]} {[%emt 00:02:36]} 18. Bf4
{[%clk 00:38:01]} {[%emt 00:02:27]} Nf5 {[%clk 00:32:22]} {[%emt 00:04:53]} 19.
Ne4 {[%clk 00:37:21]} {[%emt 00:01:09]} O-O {[%clk 00:32:28]} {[%emt 00:00:24]}
20. g4 {[%clk 00:29:28]} {[%emt 00:08:22]} Nh4 {[%clk 00:31:42]} {[%emt
00:01:17]} 21. Nxh4 {[%clk 00:25:21]} {[%emt 00:04:37]} Qxh4 {[%clk 00:32:05]}
{[%emt 00:00:09]} 22. Rxd7 {[%clk 00:25:37]} {[%emt 00:00:13]} Qxg4+ {[%clk
00:32:13]} {[%emt 00:00:22]} 23. Bg3 {[%clk 00:25:52]} {[%emt 00:00:14]} f5
{[%clk 00:32:36]} {[%emt 00:00:07]} 24. f3 {[%clk 00:24:40]} {[%emt 00:01:42]}
Qxf3 {[%clk 00:27:23]} {[%emt 00:05:43]} 25. Qc7 {[%clk 00:19:39]} {[%emt
00:05:31]} Qg4 {[%clk 00:27:06]} {[%emt 00:00:48]} 26. Nf2 {[%clk 00:19:55]}
{[%emt 00:00:14]} Qg6 {[%clk 00:24:53]} {[%emt 00:02:44]} 27. Nd3 {[%clk
00:16:59]} {[%emt 00:03:24]} Rfc8 {[%clk 00:23:01]} {[%emt 00:02:22]} 28. Qe5
{[%clk 00:14:43]} {[%emt 00:02:46]} Nc6 {[%clk 00:23:15]} {[%emt 00:00:18]} 29.
Qd6 {[%clk 00:14:34]} {[%emt 00:00:38]} Rd8 {[%clk 00:21:32]} {[%emt 00:02:13]}
30. Nf4 {[%clk 00:14:35]} {[%emt 00:00:30]} Qe8 {[%clk 00:21:26]} {[%emt
00:00:35]} 31. Rxd8 {[%clk 00:13:07]} {[%emt 00:01:57]} Nxd8 {[%clk 00:21:51]}
{[%emt 00:00:05]} 32. Re1 {[%clk 00:08:15]} {[%emt 00:05:22]} Ra6 {[%clk
00:21:48]} {[%emt 00:00:34]} 33. Qb8 {[%clk 00:06:37]} {[%emt 00:02:08]} Qf8
{[%clk 00:22:00]} {[%emt 00:00:15]} 34. Rd1 {[%clk 00:06:09]} {[%emt 00:01:00]}
Nf7 {[%clk 00:21:53]} {[%emt 00:00:37]} 35. Qxb7 {[%clk 00:05:08]} {[%emt
00:01:31]} Rd6 {[%clk 00:21:09]} {[%emt 00:01:12]} 36. Rxd6 {[%clk 00:04:09]}
{[%emt 00:01:32]} Qxd6 {[%clk 00:21:13]} {[%emt 00:00:26]} 37. Qc8+ {[%clk
00:03:44]} {[%emt 00:00:55]} Nd8 {[%clk 00:21:38]} {[%emt 00:00:05]} 38. Qc2
{[%clk 00:03:07]} {[%emt 00:01:06]} g5 {[%clk 00:20:04]} {[%emt 00:02:05]} 39.
Qd3 {[%clk 00:01:29]} {[%emt 00:02:08]} Qc5+ {[%clk 00:17:05]} {[%emt
00:03:28]} 40. Bf2 {[%clk 00:01:49]} {[%emt 00:00:11]} Qc1+ {[%clk 00:17:21]}
{[%emt 00:00:14]} 41. Kg2 {[%clk 00:02:07]} {[%emt 00:00:11]} Qc6+ {[%clk
00:17:29]} {[%emt 00:00:22]} 42. Kf1 {[%clk 00:23:23]} {[%emt 00:09:14]} Nf7
{[%clk 00:47:34]} {[%emt 00:00:24]} 43. Ne2 {[%clk 00:22:57]} {[%emt 00:00:57]}
Nd6 {[%clk 00:44:29]} {[%emt 00:03:35]} 44. Nd4 {[%clk 00:22:06]} {[%emt
00:01:21]} Qh1+ {[%clk 00:42:32]} {[%emt 00:02:26]} 45. Bg1 {[%clk 00:21:26]}
{[%emt 00:01:11]} Qd5 {[%clk 00:42:01]} {[%emt 00:01:01]} 46. Qg3 {[%clk
00:20:07]} {[%emt 00:01:49]} h6 {[%clk 00:40:05]} {[%emt 00:02:26]} 47. Qf3
{[%clk 00:19:16]} {[%emt 00:01:21]} Ne4 {[%clk 00:40:25]} {[%emt 00:00:11]} 48.
Qh5 {[%clk 00:19:19]} {[%emt 00:00:25]} Kg7 {[%clk 00:38:16]} {[%emt 00:02:41]}
49. Qe8 {[%clk 00:19:20]} {[%emt 00:00:28]} Nc5 {[%clk 00:36:23]} {[%emt
00:02:23]} 50. Qc6 {[%clk 00:18:03]} {[%emt 00:01:47]} Qxc6 {[%clk 00:35:56]}
{[%emt 00:00:58]} 51. Nxc6 {[%clk 00:18:31]} {[%emt 00:00:02]} Nd3 {[%clk
00:36:08]} {[%emt 00:00:18]} 52. Bd4+ {[%clk 00:16:33]} {[%emt 00:02:27]} Kh7
{[%clk 00:36:34]} {[%emt 00:00:05]} 53. Be3 {[%clk 00:16:10]} {[%emt 00:00:53]}
e5 {[%clk 00:36:11]} {[%emt 00:00:53]} 54. Bd2 {[%clk 00:16:22]} {[%emt
00:00:18]} e4 {[%clk 00:36:26]} {[%emt 00:00:16]} 55. Nxb4 {[%clk 00:16:40]}
{[%emt 00:00:11]} Nc5 {[%clk 00:36:29]} {[%emt 00:00:27]} 56. Be3 {[%clk
00:16:36]} {[%emt 00:00:33]} Nb7 {[%clk 00:36:32]} {[%emt 00:00:28]} 57. Bb6
{[%clk 00:15:48]} {[%emt 00:01:18]} 1-0

[Event "The Schackveckan 2023: IM-turnering"]
[Site "Goteborgs schackcentrum, Vegagatan 20, Gothenburg, Sweden"]
[Date "2023.08.07"]
[Round "4.5"]
[White "Berggren Torell, Harald"]
[Black "Storme, Isak"]
[Result "0-1"]
[TimeControl "90 minutes for 40 moves + 30 minutes for the rest of the game + 30 seconds per move from move one."]
[BlackTitle "IM"]
[WhiteFideId "1714031"]
[BlackFideId "1728113"]
[WhiteElo "2061"]
[BlackElo "2448"]

1. Nf3 {[%clk 01:22:19]} {[%emt 00:08:41]} Nf6 {[%clk 01:30:48]} {[%emt
00:00:12]} 2. e3 {[%clk 01:22:44]} {[%emt 00:00:05]} g6 {[%clk 01:30:51]}
{[%emt 00:00:28]} 3. b3 {[%clk 01:22:55]} {[%emt 00:00:19]} Bg7 {[%clk
01:30:50]} {[%emt 00:00:30]} 4. Bb2 {[%clk 01:23:21]} {[%emt 00:00:04]} O-O
{[%emt 00:00:57]} 5. d4 {[%clk 01:23:02]} b6 {[%clk 01:29:30]} {[%emt
00:02:12]} 6. g3 {[%clk 01:20:29]} {[%emt 00:03:03]} Bb7 {[%clk 01:29:41]}
{[%emt 00:00:18]} 7. Bg2 {[%clk 01:20:57]} {[%emt 00:00:03]} c5 {[%clk
01:26:24]} {[%emt 00:03:46]} 8. dxc5 {[%clk 01:19:30]} {[%emt 00:01:58]} bxc5
{[%clk 01:26:34]} {[%emt 00:00:20]} 9. c4 {[%clk 01:19:51]} {[%emt 00:00:08]}
e6 {[%clk 01:21:25]} {[%emt 00:05:39]} 10. O-O {[%clk 01:15:25]} {[%emt
00:04:56]} d5 {[%clk 01:19:33]} {[%emt 00:02:22]} 11. cxd5 {[%clk 01:13:24]}
{[%emt 00:02:32]} exd5 {[%clk 01:19:46]} {[%emt 00:00:14]} 12. Qc2 {[%clk
01:05:55]} {[%emt 00:08:02]} Nbd7 {[%clk 01:16:34]} {[%emt 00:03:41]} 13. Nc3
{[%clk 01:05:04]} {[%emt 00:01:22]} Rc8 {[%clk 01:15:43]} {[%emt 00:01:20]} 14.
Rac1 {[%clk 01:02:38]} {[%emt 00:02:57]} d4 {[%clk 01:12:23]} {[%emt 00:03:49]}
15. Nd1 {[%clk 00:55:39]} {[%emt 00:07:30]} Ba6 {[%clk 01:09:17]} {[%emt
00:03:36]} 16. Re1 {[%clk 00:56:06]} {[%emt 00:00:03]} d3 {[%clk 01:09:35]}
{[%emt 00:00:12]} 17. Qb1 {[%clk 00:56:17]} {[%emt 00:00:19]} c4 {[%clk
01:01:25]} {[%emt 00:08:39]} 18. Nd2 {[%clk 00:50:38]} {[%emt 00:06:09]} Nb6
{[%clk 00:57:49]} {[%emt 00:04:06]} 19. Nc3 {[%clk 00:48:54]} {[%emt 00:02:15]}
Qe7 {[%clk 00:52:41]} {[%emt 00:05:38]} 20. Bf1 {[%clk 00:40:26]} {[%emt
00:08:58]} Rfd8 {[%clk 00:52:46]} {[%emt 00:00:24]} 21. Rcd1 {[%clk 00:35:04]}
{[%emt 00:05:53]} Rb8 {[%clk 00:50:38]} {[%emt 00:02:37]} 22. Qa1 {[%clk
00:28:20]} {[%emt 00:07:15]} Ng4 {[%clk 00:46:43]} {[%emt 00:04:25]} 23. Nd5
{[%clk 00:25:05]} {[%emt 00:03:44]} Nxd5 {[%clk 00:45:36]} {[%emt 00:01:37]} 24.
Bxg7 {[%clk 00:25:24]} {[%emt 00:00:12]} f6 {[%clk 00:45:21]} {[%emt 00:00:44]}
25. bxc4 {[%clk 00:25:27]} {[%emt 00:00:27]} Nb4 {[%clk 00:44:45]} {[%emt
00:01:06]} 26. Bh3 {[%clk 00:23:44]} {[%emt 00:02:13]} Nc2 {[%clk 00:44:27]}
{[%emt 00:00:48]} 0-1

[Event "The Schackveckan 2023: IM-turnering"]
[Site "Goteborgs schackcentrum, Vegagatan 20, Gothenburg, Sweden"]
[Date "2023.08.08"]
[Round "5.1"]
[White "Ustianovich, Nazar"]
[Black "Kistrup, Nicolai"]
[Result "1-0"]
[TimeControl "90 minutes for 40 moves + 30 minutes for the rest of the game + 30 seconds per move from move one."]
[WhiteTitle "FM"]
[BlackTitle "FM"]
[WhiteFideId "14109778"]
[BlackFideId "1444816"]
[WhiteElo "2314"]
[BlackElo "2339"]

1. Nf3 {[%clk 01:24:33]} {[%emt 00:06:26]} d5 {[%clk 01:30:54]} {[%emt
00:00:07]} 2. g3 {[%clk 01:23:13]} {[%emt 00:01:50]} g6 {[%clk 01:29:06]}
{[%emt 00:02:17]} 3. Bg2 {[%clk 01:19:11]} {[%emt 00:04:32]} Bg7 {[%clk
01:29:29]} {[%emt 00:00:07]} 4. O-O {[%clk 01:14:03]} {[%emt 00:05:38]} e5
{[%clk 01:25:45]} {[%emt 00:04:14]} 5. c4 {[%clk 01:00:36]} {[%emt 00:13:58]}
dxc4 {[%clk 01:10:30]} {[%emt 00:15:45]} 6. Na3 {[%clk 00:55:53]} {[%emt
00:05:13]} Be6 {[%clk 01:01:59]} {[%emt 00:09:01]} 7. Qc2 {[%clk 00:55:52]}
{[%emt 00:00:31]} Nc6 {[%clk 00:59:56]} {[%emt 00:02:33]} 8. Nxc4 {[%clk
00:56:12]} {[%emt 00:00:10]} Nge7 {[%clk 00:58:58]} {[%emt 00:01:27]} 9. d3
{[%clk 00:56:28]} {[%emt 00:00:14]} O-O {[%clk 00:58:18]} {[%emt 00:01:10]} 10.
Bd2 {[%clk 00:53:48]} {[%emt 00:03:10]} Re8 {[%clk 00:51:00]} {[%emt 00:07:48]}
11. Rac1 {[%clk 00:52:50]} {[%emt 00:01:28]} Bd5 {[%clk 00:41:30]} {[%emt
00:10:00]} 12. e3 {[%clk 00:48:40]} {[%emt 00:04:41]} Nf5 {[%clk 00:36:23]}
{[%emt 00:05:37]} 13. Na5 {[%clk 00:18:37]} {[%emt 00:30:33]} Nxa5 {[%clk
00:24:16]} {[%emt 00:12:36]} 14. Bxa5 {[%clk 00:19:01]} {[%emt 00:00:07]} b6
{[%clk 00:22:42]} {[%emt 00:02:04]} 15. e4 {[%clk 00:16:22]} {[%emt 00:03:09]}
bxa5 {[%clk 00:20:01]} {[%emt 00:03:10]} 16. exd5 {[%clk 00:16:41]} {[%emt
00:00:12]} Rb8 {[%clk 00:17:00]} {[%emt 00:03:31]} 17. b3 {[%clk 00:16:32]}
{[%emt 00:00:39]} Qxd5 {[%clk 00:15:04]} {[%emt 00:02:26]} 18. Nh4 {[%clk
00:14:33]} {[%emt 00:02:29]} Qd8 {[%clk 00:09:04]} {[%emt 00:06:30]} 19. Nxf5
{[%clk 00:14:53]} {[%emt 00:00:10]} gxf5 {[%clk 00:09:29]} {[%emt 00:00:05]} 20.
Qxc7 {[%clk 00:14:55]} {[%emt 00:00:28]} a4 {[%clk 00:07:50]} {[%emt 00:02:09]}
21. bxa4 {[%clk 00:13:22]} {[%emt 00:02:03]} Re7 {[%clk 00:05:26]} {[%emt
00:02:53]} 22. Qxd8+ {[%clk 00:10:09]} {[%emt 00:03:44]} Rxd8 {[%clk 00:05:51]}
{[%emt 00:00:05]} 23. Bh3 {[%clk 00:10:27]} {[%emt 00:00:12]} e4 {[%clk
00:03:36]} {[%emt 00:02:44]} 24. Rfe1 {[%clk 00:07:47]} {[%emt 00:03:10]} Re5
{[%clk 00:02:09]} {[%emt 00:01:58]} 25. dxe4 {[%clk 00:07:57]} {[%emt
00:00:20]} fxe4 {[%clk 00:02:29]} {[%emt 00:00:10]} 26. Rc8 {[%clk 00:07:03]}
{[%emt 00:01:24]} Rxc8 {[%clk 00:01:12]} {[%emt 00:01:47]} 27. Bxc8 {[%clk
00:07:31]} {[%emt 00:00:02]} f5 {[%clk 00:01:05]} {[%emt 00:00:36]} 28. Rd1
{[%clk 00:07:10]} {[%emt 00:00:51]} e3 {[%clk 00:00:49]} {[%emt 00:00:46]} 29.
fxe3 {[%clk 00:07:19]} {[%emt 00:00:21]} Bh6 {[%clk 00:01:06]} {[%emt
00:00:13]} 30. Rf1 {[%clk 00:04:03]} {[%emt 00:03:46]} Bxe3+ {[%clk 00:01:31]}
{[%emt 00:00:05]} 31. Kg2 {[%clk 00:04:02]} {[%emt 00:00:30]} f4 {[%clk
00:00:49]} {[%emt 00:01:14]} 32. gxf4 {[%clk 00:04:12]} {[%emt 00:00:19]} Re8
{[%clk 00:00:57]} {[%emt 00:00:23]} 33. Ba6 {[%clk 00:03:22]} {[%emt 00:01:20]}
Kg7 {[%clk 00:00:43]} {[%emt 00:00:44]} 34. Kf3 {[%clk 00:01:29]} {[%emt
00:02:22]} Bb6 {[%clk 00:01:02]} {[%emt 00:00:11]} 35. Bc4 {[%clk 00:01:19]}
{[%emt 00:00:40]} Kf6 {[%clk 00:01:16]} {[%emt 00:00:17]} 36. Rd1 {[%clk
00:00:55]} {[%emt 00:00:53]} Re3+ {[%clk 00:01:12]} {[%emt 00:00:34]} 37. Kg4
{[%clk 00:00:46]} {[%emt 00:00:38]} h5+ {[%clk 00:00:36]} {[%emt 00:01:07]} 38.
Kxh5 {[%clk 00:00:39]} {[%emt 00:00:37]} Rh3+ {[%clk 00:00:46]} {[%emt
00:00:20]} 39. Kg4 {[%clk 00:01:04]} {[%emt 00:00:06]} Rxh2 {[%clk 00:01:11]}
{[%emt 00:00:05]} 40. Rd6+ {[%clk 00:01:10]} {[%emt 00:00:24]} Ke7 {[%clk
00:00:59]} {[%emt 00:00:41]} 41. Re6+ {[%clk 00:01:12]} {[%emt 00:00:26]} Kf8
{[%clk 00:17:38]} {[%emt 00:13:53]} 42. Rf6+ {[%clk 00:28:09]} {[%emt
00:03:32]} Ke7 {[%clk 00:07:05]} {[%emt 00:11:04]} 43. Rf7+ {[%clk 00:28:21]}
{[%emt 00:00:18]} Ke8 {[%clk 00:07:17]} {[%emt 00:00:18]} 44. Rb7 {[%clk
00:22:03]} {[%emt 00:06:47]} Rf2 {[%clk 00:05:45]} {[%emt 00:02:03]} 45. Bb3
{[%clk 00:13:09]} {[%emt 00:09:25]} Rd2 {[%clk 00:02:33]} {[%emt 00:03:42]} 46.
a5 {[%clk 00:12:21]} {[%emt 00:01:18]} Be3 {[%clk 00:01:53]} {[%emt 00:01:09]}
47. Kf3 {[%clk 00:12:01]} {[%emt 00:00:50]} Bc5 {[%clk 00:01:46]} {[%emt
00:00:37]} 48. Ke4 {[%clk 00:11:46]} {[%emt 00:00:45]} Rf2 {[%clk 00:00:36]}
{[%emt 00:01:41]} 49. Kd5 {[%clk 00:08:16]} {[%emt 00:04:00]} Be3 {[%clk
00:00:51]} {[%emt 00:00:14]} 50. f5 {[%clk 00:08:30]} {[%emt 00:00:17]} Re2
{[%clk 00:00:34]} {[%emt 00:00:46]} 51. f6 {[%clk 00:07:34]} {[%emt 00:01:26]}
Bg1 {[%clk 00:00:36]} {[%emt 00:00:28]} 52. Kc6 {[%clk 00:05:05]} {[%emt
00:02:59]} Bh2 {[%clk 00:00:33]} {[%emt 00:00:34]} 53. Rxa7 {[%clk 00:02:31]}
{[%emt 00:03:04]} Kf8 {[%clk 00:00:38]} {[%emt 00:00:25]} 54. Rh7 {[%clk
00:01:58]} {[%emt 00:01:02]} 1-0